bitfinex/quotes_ETHUSD_20251126
["timestamp","ask_amount","ask_price","bid_price","bid_amount"]
[1764136138119,0.215,2947.4,2947.3,0.9536]
[1764136138694,0.09410022,2947.7,2947.3,0.9536]
[1764136138895,0.215,2947.6,2947.3,0.9536]
[1764136139126,0.215,2947.6,2947.4,0.464]
[1764136139428,0.215,2947.6,2947.5,0.4886]
[1764136140698,0.215,2947.6,2947.5,0.9526]
[1764136140898,0.215,2947.6,2947.5,0.4886]
[1764136141620,0.78270022,2947.6,2947.3,0.001]
[1764136141826,0.78270022,2947.6,2947.3,3.39392]
[1764136142026,1.21070022,2947.6,2947.3,3.39392]
[1764136142199,0.78270022,2947.6,2947.3,3.39392]
[1764136142530,0.30910022,2947.6,2947.5,0.4753]
[1764136142730,1.04190087,2947.6,2947.5,0.4753]
[1764136143627,6.47,2947.9,2947.5,4.31890568]
[1764136143805,0.94779669,2947.8,2947.6,0.4509]
[1764136144007,6.56410022,2948.1,2947.6,0.4509]
[1764136144212,1.26579563,2948.0,2947.6,0.4509]
[1764136144422,0.73275393,2947.9,2947.6,0.4509]
[1764136144619,0.215,2947.9,2947.6,0.4509]
[1764136144824,0.215,2947.9,2947.8,0.4753]
[1764136145008,0.91209183,2948.4,2947.8,0.4753]
[1764136145208,1.35976519,2948.3,2947.9,0.4509]
[1764136145435,0.73265949,2948.2,2948.0,6.7842605]
[1764136145734,0.002,2948.8,2948.4,0.4753]
[1764136145735,0.91409183,2948.8,2948.4,0.4753]
[1764136145939,1.35945704,2948.7,2948.4,0.4753]
[1764136146113,0.4238,2948.5,2948.2,0.4509]
[1764136146312,0.73244563,2948.4,2948.2,0.4509]
[1764136146527,0.215,2948.3,2948.2,0.4509]
[1764136146938,0.215,2948.3,2948.2,0.9262]
[1764136147105,0.215,2948.3,2948.1,0.1841]
[1764136147106,0.73290022,2948.3,2947.9,6.7844562]
[1764136147431,0.73290022,2948.3,2947.9,0.4509]
[1764136148408,0.73290022,2948.3,2947.8,0.72559411]
[1764136148608,1.21010022,2948.3,2947.8,0.72559411]
[1764136148809,2.64102668,2948.2,2947.7,3.39247548]
[1764136149009,0.0048,2947.8,2947.6,3.39257355]
[1764136149210,0.215,2947.7,2947.6,3.39257355]
[1764136149410,0.215,2947.7,2947.4,6.7856259]
[1764136149713,0.215,2947.7,2947.6,0.4753]
[1764136150432,0.215,2947.7,2947.6,0.9262]
[1764136151407,0.09410022,2948.0,2947.7,3.39247548]
[1764136151639,0.215,2947.9,2947.7,3.39247548]
[1764136152036,0.09410022,2948.0,2947.8,0.9262]
[1764136152229,0.09410022,2948.0,2947.9,0.4753]
[1764136152413,1.21612244,2948.7,2947.9,3.60114913]
[1764136152414,0.73193468,2948.3,2947.9,3.60114913]
[1764136152614,0.215,2948.7,2948.6,0.6594]
[1764136153013,0.215,2948.7,2948.6,1.1103]
[1764136153614,0.215,2948.7,2948.6,4.50174]
[1764136154342,0.002,2949.1,2948.7,0.72559411]
[1764136154544,0.217,2948.8,2948.7,1.65239411]
[1764136155624,0.217,2948.8,2948.7,5.0437191]
[1764136156742,0.002,2948.8,2948.7,5.0437191]
[1764136158639,0.002,2948.8,2948.7,5.07763234]
[1764136159246,0.002,2948.8,2948.7,5.29263234]
[1764136159843,0.002,2948.8,2948.7,8.95752506]
[1764136160042,0.002,2949.1,2948.8,0.405504]
[1764136160227,0.002,2949.1,2949.0,0.861004]
[1764136160620,0.002,2949.1,2949.0,1.332304]
[1764136161221,0.002,2949.1,2949.0,1.36621379]
[1764136162232,0.002,2949.1,2949.0,5.4488781]
[1764136162432,0.002,2949.1,2949.0,5.48278789]
[1764136162754,0.002,2949.1,2949.0,5.4488781]
[1764136163123,0.002,2949.1,2949.0,5.69978789]
[1764136165250,0.002,2949.1,2949.0,5.6658781]
[1764136165460,0.002,2949.1,2949.0,5.69978789]
[1764136166749,0.002,2949.1,2949.0,5.6658781]
[1764136168347,0.002,2949.4,2949.3,3.39063506]
[1764136168659,0.002,2949.4,2949.3,4.60563552]
[1764136168953,0.002,2949.4,2949.3,5.07693552]
[1764136169256,0.002,2949.4,2949.3,5.04302917]
[1764136170458,0.002,2949.4,2949.3,5.17886666]
[1764136170935,0.002,2949.4,2949.3,5.58437066]
[1764136171138,0.002,2949.4,2949.3,5.17886666]
[1764136172753,0.002,2949.4,2949.3,4.70756666]
[1764136173472,0.3632,2949.4,2949.3,4.25206666]
[1764136173643,0.002,2949.4,2949.3,4.25206666]
[1764136173970,0.002,2949.4,2949.3,4.70756666]
[1764136175779,0.002,2949.4,2949.3,5.17886666]
[1764136176593,0.002,2949.4,2949.3,5.21277301]
[1764136176893,0.002,2949.4,2949.3,5.17886666]
[1764136179017,0.002,2949.4,2949.3,4.70756666]
[1764136179733,0.002,2949.4,2949.3,5.17886666]
[1764136180265,0.002,2949.4,2949.3,5.04302917]
[1764136180701,0.8236,2949.4,2949.3,3.39063506]
[1764136182789,0.8236,2949.4,2949.0,0.72559411]
[1764136182991,0.4614,2949.3,2949.0,0.72559411]
[1764136183306,0.4614,2949.3,2948.9,3.39105205]
[1764136183307,0.3612,2949.1,2948.9,3.39105205]
[1764136183527,0.3612,2949.0,2948.9,3.39105205]
[1764136183685,0.8216,2949.0,2948.9,3.39105205]
[1764136184491,0.8216,2949.0,2948.8,0.001]
[1764136184715,1.0148,2948.9,2948.8,0.001]
[1764136185718,0.7652,2948.9,2948.8,0.001]
[1764136185884,1.2288,2948.9,2948.8,0.001]
[1764136187118,0.002,2949.4,2948.8,0.4829]
[1764136187318,0.002,2949.4,2949.3,0.4819]
[1764136188424,0.002,2949.4,2949.3,0.51580635]
[1764136188620,0.002,2949.4,2949.3,0.9669]
[1764136189428,0.002,2949.4,2949.3,5.08312917]
[1764136189725,0.002,2949.4,2949.3,4.59812917]
[1764136191010,0.3642,2949.4,2949.3,4.59812917]
[1764136191336,0.8278,2949.4,2949.3,4.11622917]
[1764136191639,0.8278,2949.4,2948.9,4.41111601]
[1764136191640,0.91963839,2949.4,2949.0,3.39097999]
[1764136191837,0.3427,2949.3,2949.0,3.39097999]
[1764136192025,0.4797,2949.1,2949.0,3.39097999]
[1764136192610,0.4797,2949.1,2949.0,4.1165741]
[1764136193842,0.002,2949.4,2949.0,4.1165741]
[1764136193843,0.002,2949.4,2949.0,7.98945409]
[1764136194251,0.215,2949.3,2949.0,7.98945409]
[1764136194551,0.215,2949.2,2949.0,7.50755409]
[1764136195042,0.215,2949.2,2949.1,0.4819]
[1764136195221,0.215,2949.2,2949.0,7.50755409]
[1764136195419,0.3622,2949.1,2949.0,4.1165741]
[1764136195822,0.8258,2949.1,2949.0,4.1165741]
[1764136196232,0.002,2949.4,2949.0,4.5984741]
[1764136196434,0.215,2949.3,2949.0,7.98945409]
[1764136196635,0.3622,2949.1,2949.0,4.1165741]
[1764136197025,0.8258,2949.1,2949.0,4.1165741]
[1764136197226,0.215,2949.3,2949.0,7.98945409]
[1764136197955,0.002,2949.4,2949.2,0.4819]
[1764136198125,0.002,2949.4,2949.3,0.4819]
[1764136198443,0.217,2949.4,2949.3,0.4819]
[1764136198644,0.6967,2949.4,2949.1,0.72559411]
[1764136199017,0.215,2949.3,2949.1,0.72559411]
[1764136199218,0.3622,2949.2,2949.0,6.78195998]
[1764136199517,0.4682,2949.1,2948.9,0.001]
[1764136199717,0.3586,2949.0,2948.9,0.001]
[1764136200644,0.8232,2949.0,2948.9,0.001]
[1764136201655,1.0382,2949.0,2948.9,0.001]
[1764136205453,1.13003839,2949.0,2948.9,0.001]
[1764136209354,0.91503839,2949.0,2948.9,0.001]
[1764136209856,1.13003839,2949.0,2948.9,0.001]
[1764136211153,0.5736,2949.0,2948.9,0.001]
[1764136211552,1.0393,2949.0,2948.9,0.001]
[1764136212855,0.91605313,2949.4,2948.9,0.001]
[1764136213026,0.5762,2949.0,2948.9,0.001]
[1764136213873,1.0408,2949.0,2948.9,0.001]
[1764136214546,0.8227,2949.0,2948.9,0.001]
[1764136214868,1.0377,2949.0,2948.9,0.001]
[1764136218277,1.86108913,2949.0,2948.9,0.001]
[1764136219271,2.1786795,2949.0,2948.9,0.001]
[1764136221535,3.39480194,2949.0,2948.9,0.001]
[1764136222371,10.27030594,2949.0,2948.9,0.001]
[1764136222574,10.99590005,2949.0,2948.9,0.001]
[1764136222939,21.42540128,2949.0,2948.9,0.001]
[1764136223139,24.81638127,2949.0,2948.9,0.001]
[1764136223338,22.9921976,2949.0,2948.9,0.001]
[1764136223568,15.76475061,2949.0,2948.9,0.001]
[1764136223739,14.11905261,2949.0,2948.9,0.001]
[1764136223938,17.21399261,2949.0,2948.9,0.001]
[1764136224379,19.04224675,2949.0,2948.9,0.001]
[1764136225036,18.88209175,2949.0,2948.9,0.001]
[1764136225638,14.60752161,2949.0,2948.9,0.001]
[1764136225938,9.77977761,2949.0,2948.9,0.001]
[1764136226645,15.31252161,2949.0,2948.9,0.001]
[1764136226850,14.09018161,2949.0,2948.9,0.001]
[1764136227961,14.84412461,2949.0,2948.9,0.001]
[1764136228769,12.25480161,2949.0,2948.9,0.001]
[1764136228950,11.91446161,2949.0,2948.9,0.001]
[1764136229677,15.3054416,2949.0,2948.9,0.001]
[1764136229880,21.3383826,2949.0,2948.9,0.001]
[1764136230042,17.94740261,2949.0,2948.9,0.001]
[1764136230244,17.46449761,2949.0,2948.9,0.001]
[1764136230944,17.77749761,2949.0,2948.9,0.001]
[1764136231275,21.1684776,2949.0,2948.9,0.001]
[1764136231675,21.70053355,2949.0,2948.9,0.001]
[1764136232054,23.52425355,2949.0,2948.9,0.001]
[1764136232286,25.35250769,2949.0,2948.9,0.001]
[1764136232456,17.5133765,2948.9,2948.8,0.001]
[1764136232641,21.78389376,2948.9,2948.8,0.001]
[1764136232844,22.15279376,2948.9,2948.8,0.001]
[1764136233943,23.9810479,2948.9,2948.8,0.001]
[1764136234475,27.37214288,2948.9,2948.8,0.001]
[1764136235369,25.54388874,2948.9,2948.8,0.001]
[1764136235788,22.06095537,2948.9,2948.8,0.001]
[1764136236100,22.36779376,2948.9,2948.8,0.001]
[1764136236285,21.64219965,2948.9,2948.8,0.001]
[1764136236663,21.42719965,2948.9,2948.8,0.001]
[1764136236886,21.64219965,2948.9,2948.8,0.001]
[1764136238092,11.82075965,2948.9,2948.8,0.001]
[1764136238296,21.64219965,2948.9,2948.8,0.001]
[1764136238496,14.19154865,2948.9,2948.8,0.001]
[1764136239090,11.82075965,2948.9,2948.8,0.001]
[1764136239296,20.89687765,2948.9,2948.8,0.001]
[1764136240197,21.62247176,2948.9,2948.8,0.001]
[1764136241498,21.62447176,2948.9,2948.8,0.001]
[1764136241888,21.53263337,2948.9,2948.8,0.001]
[1764136242102,25.01556674,2948.9,2948.8,0.001]
[1764136242409,16.694944,2948.6,2948.5,0.001]
[1764136242708,23.79556593,2948.6,2948.5,0.001]
[1764136242883,24.1604871,2948.6,2948.5,0.001]
[1764136243601,19.19151593,2948.6,2948.5,0.001]
[1764136243805,11.06254978,2948.6,2948.5,0.001]
[1764136244007,10.66815674,2948.6,2948.5,0.001]
[1764136244198,11.00425674,2948.6,2948.5,0.001]
[1764136245121,10.78925674,2948.6,2948.5,0.001]
[1764136245275,11.00425674,2948.6,2948.5,0.001]
[1764136245611,14.11509274,2948.6,2948.5,0.001]
[1764136247294,9.78577761,2948.6,2948.5,0.001]
[1764136248888,9.44967761,2948.6,2948.5,0.001]
[1764136250095,9.77033034,2948.6,2948.5,0.4954]
[1764136250300,8.54957361,2948.6,2948.5,0.4954]
[1764136252209,10.37744578,2948.6,2948.5,0.4954]
[1764136252835,8.54957361,2948.6,2948.5,0.4954]
[1764136253436,10.37744578,2948.6,2948.5,0.4954]
[1764136253629,8.54957361,2948.6,2948.5,0.4954]
[1764136253935,10.37744578,2948.6,2948.5,0.4954]
[1764136254534,10.16244578,2948.6,2948.5,0.4954]
[1764136254880,10.37744578,2948.6,2948.5,0.4954]
[1764136255205,10.37744578,2948.6,2948.5,0.001]
[1764136255405,8.54957361,2948.6,2948.5,0.4954]
[1764136257006,8.24273522,2948.6,2948.5,0.9463]
[1764136257209,8.73934556,2948.6,2948.5,0.9463]
[1764136257409,7.51714111,2948.6,2948.5,4.33785502]
[1764136257609,7.41455074,2948.6,2948.5,4.33785502]
[1764136257805,0.215,2948.6,2948.5,4.33785502]
[1764136259540,0.217,2948.6,2948.5,4.33785502]
[1764136262144,0.002,2948.6,2948.5,4.33785502]
[1764136262328,0.217,2948.6,2948.5,4.33785502]
[1764136262516,0.002,2948.6,2948.5,4.33785502]
[1764136262720,0.217,2948.6,2948.5,4.33785502]
[1764136265530,0.002,2948.6,2948.5,4.55485502]
[1764136265757,0.217,2948.6,2948.5,4.55485502]
[1764136267452,0.217,2948.6,2948.5,4.33785502]
[1764136271957,0.002,2948.6,2948.5,4.33785502]
[1764136272160,0.217,2948.6,2948.5,4.33785502]
[1764136272869,0.217,2948.6,2948.5,3.88695502]
[1764136273031,0.217,2948.6,2948.5,4.34695502]
[1764136273568,0.217,2948.6,2948.5,0.4954]
[1764136273946,0.5709,2948.6,2948.5,0.001]
[1764136275146,0.217,2948.6,2948.5,0.001]
[1764136275341,0.217,2948.6,2948.5,0.4645]
[1764136275773,0.572,2948.6,2948.5,0.001]
[1764136276486,0.66383839,2948.6,2948.5,0.001]
[1764136277353,1.12493839,2948.6,2948.5,0.001]
[1764136277754,8.3185325,2948.6,2948.5,0.001]
[1764136277956,9.36616897,2948.6,2948.5,0.001]
[1764136279056,8.1411329,2948.6,2948.5,0.4645]
[1764136279968,8.23297129,2948.6,2948.5,0.4645]
[1764136281191,9.27537987,2948.6,2948.5,0.001]
[1764136281394,8.69427987,2948.6,2948.5,0.001]
[1764136281698,8.45837987,2948.6,2948.5,0.4645]
[1764136282064,8.55021826,2948.6,2948.5,0.4645]
[1764136283064,9.00031826,2948.6,2948.5,0.001]
[1764136283669,8.55021826,2948.6,2948.5,0.001]
[1764136284700,8.55021826,2948.6,2948.5,0.9479]
[1764136285001,8.55021826,2948.6,2948.5,0.4645]
[1764136287090,8.99941826,2948.6,2948.5,0.001]
[1764136288071,9.36721826,2948.6,2948.5,0.001]
[1764136288276,9.36758233,2948.6,2948.5,0.001]
[1764136288884,12.00742422,2948.6,2948.5,0.001]
[1764136289082,19.47872703,2948.6,2948.5,0.001]
[1764136289317,7.9609587,2948.6,2948.5,0.4645]
[1764136289524,7.82498822,2948.6,2948.5,0.4645]
[1764136289686,8.14688822,2948.6,2948.5,0.001]
[1764136290086,7.93188822,2948.6,2948.5,0.001]
[1764136290286,8.14688822,2948.6,2948.5,0.001]
[1764136290606,7.73314983,2948.6,2948.5,0.9479]
[1764136290912,7.82498822,2948.6,2948.5,0.4645]
[1764136291125,0.82437718,2948.6,2948.5,0.9479]
[1764136291293,0.217,2948.6,2948.5,0.9479]
[1764136292081,0.217,2948.6,2948.5,4.33945502]
[1764136292522,0.002,2948.6,2948.5,4.33945502]
[1764136292720,0.002,2948.6,2948.5,6.97929691]
[1764136293220,0.217,2948.6,2948.5,7.11520363]
[1764136293516,0.002,2948.6,2948.5,7.11520363]
[1764136306397,0.002,2948.6,2948.5,3.99196174]
[1764136306597,0.002,2948.6,2948.5,4.33845502]
[1764136309543,0.3372,2948.6,2948.5,0.001]
[1764136309739,0.8201,2948.6,2948.5,0.001]
[1764136309902,0.91193839,2948.6,2948.5,0.001]
[1764136317827,1.64286029,2948.6,2948.5,0.001]
[1764136319214,1.96022712,2948.6,2948.5,0.001]
[1764136320046,2.17522712,2948.6,2948.5,0.001]
[1764136320343,11.28306901,2948.6,2948.5,0.001]
[1764136320543,12.41416712,2948.6,2948.5,0.001]
[1764136320747,22.08080606,2948.6,2948.5,0.001]
[1764136320950,23.30066708,2948.6,2948.5,0.001]
[1764136321248,23.30066708,2948.6,2948.4,0.001]
[1764136321249,9.91327839,2948.2,2948.1,0.001]
[1764136321450,9.91327839,2948.2,2946.3,3.3939797]
[1764136321451,5.068366,2947.8,2946.3,3.3939797]
[1764136321635,0.54913839,2947.4,2946.3,3.87639721]
[1764136321841,4.64277301,2947.4,2946.1,1.22209411]
[1764136322035,4.64277301,2947.4,2946.0,2.63984189]
[1764136322036,10.32226101,2947.4,2946.0,3.89086339]
[1764136322236,10.53726101,2947.4,2946.2,0.72559411]
[1764136322549,10.53726101,2947.4,2945.9,3.58063971]
[1764136322550,1.50558873,2947.4,2946.3,9.95845548]
[1764136322738,2.08808873,2947.4,2946.3,6.53042712]
[1764136322931,2.17992712,2947.4,2946.3,3.89058523]
[1764136323126,1.86256029,2947.4,2946.3,3.89058523]
[1764136323326,0.76413839,2947.4,2946.6,0.4965]
[1764136323543,1.13163839,2947.4,2946.7,0.4965]
[1764136324052,0.91663839,2947.4,2946.7,0.4965]
[1764136324240,1.13163839,2947.4,2946.7,0.4965]
[1764136324434,0.54913839,2947.4,2946.7,0.4965]
[1764136324639,1.13163839,2947.4,2946.7,3.89001182]
[1764136324836,0.09183839,2947.4,2947.3,0.4927]
[1764136325048,0.215,2947.4,2947.3,0.4927]
[1764136326721,0.215,2947.4,2947.3,3.88560406]
[1764136327143,0.1924,2947.9,2947.3,4.38210406]
[1764136327451,0.09183839,2947.7,2947.3,4.38210406]
[1764136329528,0.215,2947.8,2947.3,0.001]
[1764136329529,0.43173839,2947.4,2947.3,0.001]
[1764136329928,0.215,2947.4,2947.3,0.4927]
[1764136330234,0.5549,2947.4,2947.3,0.001]
[1764136330554,0.3399,2947.4,2947.3,0.001]
[1764136330760,0.215,2947.4,2947.3,0.4927]
[1764136330938,0.5563,2947.4,2947.3,0.001]
[1764136332059,0.09183839,2947.5,2947.3,0.001]
[1764136332353,0.215,2947.4,2947.3,0.001]
[1764136333726,0.09183839,2947.5,2947.3,0.4927]
[1764136333933,0.1924,2947.9,2947.4,0.4514]
[1764136333934,0.09183839,2947.6,2947.4,0.4514]
[1764136334157,0.215,2947.5,2947.4,0.4514]
[1764136335241,0.5671,2947.5,2947.3,0.001]
[1764136335440,0.4608,2947.4,2947.3,0.001]
[1764136336446,0.30683839,2947.5,2947.3,0.001]
[1764136337510,0.91673839,2947.4,2947.3,0.001]
[1764136338134,1.13173839,2947.4,2947.3,0.001]
[1764136340889,0.91673839,2947.4,2947.3,0.001]
[1764136341194,1.13173839,2947.4,2947.3,0.001]
[1764136342121,1.0389,2947.4,2947.3,0.001]
[1764136342282,1.13073839,2947.4,2947.3,0.001]
[1764136342487,7.59873839,2947.4,2947.3,0.001]
[1764136342873,6.683,2947.4,2947.3,0.9138]
[1764136343072,6.683,2947.4,2947.3,4.3067359]
[1764136344306,6.683,2947.4,2947.3,3.8453359]
[1764136347889,6.683,2947.4,2947.3,4.3067359]
[1764136348404,7.41521273,2947.4,2947.3,4.3067359]
[1764136348774,7.20021273,2947.4,2947.3,4.3067359]
[1764136348981,7.41521273,2947.4,2947.3,4.3067359]
[1764136349311,7.41521273,2947.4,2947.3,3.8453359]
[1764136349715,7.41521273,2947.4,2947.3,4.3067359]
[1764136349902,7.41521273,2947.4,2947.3,3.3939359]
[1764136350509,7.41521273,2947.4,2947.3,0.001]
[1764136350700,7.41521273,2947.4,2947.3,0.9138]
[1764136352320,7.76731273,2947.4,2947.3,0.001]
[1764136352484,8.64919262,2947.4,2947.3,0.001]
[1764136352812,13.48322804,2947.4,2947.3,0.001]
[1764136352996,16.8922192,2947.4,2947.3,0.001]
[1764136353198,16.6772192,2947.4,2947.3,0.001]
[1764136353508,10.59686109,2947.4,2947.3,0.001]
[1764136353683,9.37478673,2947.4,2947.3,0.001]
[1764136354687,13.98721751,2947.4,2947.3,0.001]
[1764136354886,12.15945273,2947.4,2947.3,0.001]
[1764136355090,13.98721751,2947.4,2947.3,0.001]
[1764136355312,9.15978673,2947.4,2947.3,0.001]
[1764136355509,10.38147936,2947.4,2947.3,0.001]
[1764136355814,9.37478673,2947.4,2947.3,0.001]
[1764136356389,10.59629125,2947.4,2947.3,0.001]
[1764136356592,9.37478673,2947.4,2947.3,0.001]
[1764136357999,9.78029073,2947.4,2947.3,0.001]
[1764136358202,11.61177366,2947.4,2947.3,0.001]
[1764136360528,21.43321366,2947.4,2947.3,0.001]
[1764136360821,24.82603445,2947.4,2947.3,0.001]
[1764136361200,21.43321366,2947.4,2947.3,0.001]
[1764136361500,18.27854366,2947.4,2947.3,0.001]
[1764136361715,13.77419466,2947.4,2947.3,0.001]
[1764136363226,11.94271173,2947.4,2947.3,0.001]
[1764136363392,11.25591173,2947.4,2947.3,0.001]
[1764136363599,11.47091173,2947.4,2947.3,0.001]
[1764136363825,11.94271173,2947.4,2947.3,0.001]
[1764136365620,15.33553252,2947.4,2947.3,0.001]
[1764136366238,11.94271173,2947.4,2947.3,0.001]
[1764136366547,15.33553252,2947.4,2947.3,0.001]
[1764136367137,11.94271173,2947.4,2947.3,0.001]
[1764136367574,20.29337266,2947.4,2947.3,0.001]
[1764136367718,18.46907466,2947.4,2947.3,0.001]
[1764136368037,13.81597466,2947.4,2947.3,0.001]
[1764136368236,9.78029073,2947.4,2947.3,0.001]
[1764136368438,12.44569173,2947.4,2947.3,0.001]
[1764136368637,15.37731252,2947.4,2947.3,0.001]
[1764136368837,15.16231252,2947.4,2947.3,0.001]
[1764136369040,11.98449173,2947.4,2947.3,0.001]
[1764136369215,11.76949173,2947.4,2947.3,0.001]
[1764136369414,15.37731252,2947.4,2947.3,0.001]
[1764136369650,15.94813552,2947.4,2947.3,0.001]
[1764136370846,18.37232673,2947.4,2947.3,0.4854]
[1764136371054,8.52464122,2947.4,2947.3,0.4854]
[1764136371241,7.41521273,2947.4,2947.3,0.9435]
[1764136371650,7.20021273,2947.4,2947.3,4.3364359]
[1764136371850,6.683,2947.4,2947.3,4.3364359]
[1764136372357,6.468,2947.4,2947.3,4.3364359]
[1764136372562,6.683,2947.4,2947.3,4.3364359]
[1764136373428,6.468,2947.4,2947.3,4.3364359]
[1764136373628,6.683,2947.4,2947.3,4.3364359]
[1764136375844,6.468,2947.4,2947.3,4.3364359]
[1764136376048,6.683,2947.4,2947.3,4.3364359]
[1764136376665,6.683,2947.4,2947.3,0.9435]
[1764136376878,6.683,2947.4,2947.3,0.001]
[1764136376879,6.77483839,2947.4,2947.3,0.001]
[1764136377065,7.11163839,2947.4,2947.3,0.001]
[1764136377363,8.32626873,2947.4,2947.3,0.001]
[1764136377737,7.84286873,2947.4,2947.3,0.001]
[1764136377935,8.32626873,2947.4,2947.3,0.001]
[1764136378138,8.6436829,2947.4,2947.3,0.001]
[1764136379269,8.6436829,2947.4,2947.3,0.4854]
[1764136379270,7.73164451,2947.4,2947.3,0.4854]
[1764136379576,7.73164451,2947.4,2947.3,0.9435]
[1764136379767,7.41423034,2947.4,2947.3,0.9435]
[1764136380068,6.683,2947.4,2947.3,4.3364359]
[1764136381772,6.683,2947.4,2947.3,0.9435]
[1764136382442,7.14273839,2947.4,2947.3,0.4854]
[1764136382638,6.77483839,2947.4,2947.3,0.4854]
[1764136382842,6.683,2947.4,2947.3,0.9529]
[1764136383075,6.683,2947.4,2947.3,4.3458359]
[1764136383671,6.683,2947.4,2947.3,0.9529]
[1764136383967,6.683,2947.4,2947.3,4.3458359]
[1764136384739,6.468,2947.4,2947.3,4.3458359]
[1764136384945,6.683,2947.4,2947.3,4.3458359]
[1764136388674,6.468,2947.4,2947.3,4.3458359]
[1764136388865,7.14273839,2947.4,2947.3,0.001]
[1764136389379,6.77483839,2947.4,2947.3,0.4977]
[1764136390180,7.14353839,2947.4,2947.3,0.001]
[1764136392152,7.59533839,2947.4,2947.3,0.001]
[1764136392670,7.14353839,2947.4,2947.3,0.001]
[1764136393265,7.59533839,2947.4,2947.3,0.001]
[1764136393670,7.14353839,2947.4,2947.3,0.001]
[1764136394281,0.67553839,2947.4,2947.3,0.001]
[1764136395181,1.40716015,2947.4,2947.3,0.001]
[1764136395374,2.17654812,2947.4,2947.3,0.001]
[1764136395882,8.64654812,2947.4,2947.3,0.001]
[1764136396052,9.37214223,2947.4,2947.3,0.001]
[1764136397654,10.28649083,2947.4,2947.3,0.001]
[1764136397853,9.37214223,2947.4,2947.3,0.001]
[1764136400169,10.37639074,2947.4,2947.3,0.001]
[1764136400370,10.59139074,2947.4,2947.3,0.001]
[1764136400571,10.59188379,2947.4,2947.3,0.001]
[1764136401188,9.15763528,2947.4,2947.3,0.001]
[1764136401387,9.37263528,2947.4,2947.3,0.001]
[1764136401688,9.15763528,2947.4,2947.3,0.001]
[1764136401992,9.37263528,2947.4,2947.3,0.001]
[1764136402176,9.15763528,2947.4,2947.3,0.001]
[1764136402378,9.77813928,2947.4,2947.3,0.001]
[1764136403166,9.56313928,2947.4,2947.3,0.001]
[1764136403467,9.77813928,2947.4,2947.3,0.001]
[1764136404289,17.57413579,2947.4,2947.3,0.001]
[1764136404483,14.15295779,2947.4,2947.3,0.001]
[1764136408494,17.54577858,2947.4,2947.3,0.001]
[1764136408670,22.99240007,2947.4,2947.3,0.001]
[1764136409692,25.63487559,2947.4,2947.3,0.001]
[1764136409871,27.46635852,2947.4,2947.3,0.001]
[1764136410904,25.63487559,2947.4,2947.3,0.001]
[1764136411676,25.63487559,2947.4,2947.0,0.001]
[1764136411677,6.873504,2947.1,2947.0,0.001]
[1764136411981,21.5460548,2947.1,2947.0,0.001]
[1764136412167,22.0216548,2947.1,2947.0,0.001]
[1764136412492,22.55397174,2947.1,2947.0,0.001]
[1764136412897,24.38414002,2947.1,2947.0,0.001]
[1764136413393,22.55397174,2947.1,2947.0,0.001]
[1764136413697,25.9471379,2947.1,2947.0,0.001]
[1764136414062,27.77730618,2947.1,2947.0,0.001]
[1764136414262,28.58961342,2947.1,2947.0,0.001]
[1764136414484,27.77730618,2947.1,2947.0,0.001]
[1764136414686,27.77730618,2947.1,2946.7,0.001]
[1764136414687,10.95253811,2947.0,2946.7,0.001]
[1764136415000,15.72306265,2946.8,2946.7,0.001]
[1764136415174,14.9434548,2946.8,2946.7,0.001]
[1764136415375,11.1062798,2946.8,2946.7,0.001]
[1764136415775,15.5800174,2946.8,2946.7,0.001]
[1764136416296,17.40798118,2946.8,2946.7,0.001]
[1764136416596,15.93893005,2946.8,2946.7,0.001]
[1764136416895,19.17147905,2946.8,2946.7,0.001]
[1764136417190,20.99887671,2946.8,2946.7,0.001]
[1764136417768,20.85496406,2946.8,2946.7,0.001]
[1764136418174,20.41956906,2946.8,2946.7,0.001]
[1764136418804,20.85496406,2946.8,2946.7,0.001]
[1764136419002,20.41956806,2946.8,2946.7,0.001]
[1764136419795,11.03352406,2946.8,2946.7,0.001]
[1764136419986,20.85496406,2946.8,2946.7,0.001]
[1764136421871,11.03352406,2946.8,2946.7,0.001]
[1764136422095,20.85496406,2946.8,2946.7,0.001]
[1764136426587,21.38739279,2946.8,2946.7,0.001]
[1764136426783,20.85496406,2946.8,2946.7,0.001]
[1764136427617,20.63996406,2946.8,2946.7,0.001]
[1764136427800,20.85496406,2946.8,2946.7,0.001]
[1764136428598,20.24431306,2946.8,2946.7,0.001]
[1764136428804,11.57642994,2946.8,2946.7,0.4917]
[1764136429005,11.57642994,2946.8,2946.7,0.001]
[1764136429006,7.5097318,2946.8,2946.7,0.001]
[1764136429212,14.37750806,2946.8,2946.7,0.001]
[1764136429508,13.17685506,2946.8,2946.7,0.001]
[1764136430011,13.66095506,2946.8,2946.7,0.001]
[1764136430211,17.63303814,2946.8,2946.7,0.001]
[1764136430710,17.18094114,2946.8,2946.7,0.001]
[1764136431080,11.16537014,2946.8,2946.7,0.001]
[1764136431282,14.61833814,2946.8,2946.7,0.001]
[1764136431512,13.78000511,2946.7,2946.6,0.001]
[1764136431713,14.48448436,2946.7,2946.6,0.001]
[1764136432111,11.05668302,2946.7,2946.6,0.001]
[1764136432280,17.50350902,2946.7,2946.6,0.001]
[1764136433011,8.73878536,2946.7,2946.6,0.4917]
[1764136433208,10.56618302,2946.7,2946.6,0.9591]
[1764136433398,9.44715633,2946.7,2946.6,0.9591]
[1764136433602,9.86792488,2946.7,2946.6,0.9591]